[Event "Late-Titled-Tuesday-Blitz-March-12-2024"]
[Site "Chess.com"]
[Date "2024.03.12"]
[Round "9"]
[White "Rinqed222"]
[Black "ShahMatKanal"]
[Result "1-0"]
[WhiteElo "2383"]
[BlackElo "2485"]
[TimeControl "180+1"]
[EndTime "15:43:38 PDT"]
[Termination "Rinqed222 won on time"]

1. e4 {[%clk 0:03:00.9]} 1... b6 {[%clk 0:02:55.3]} 2. d4 {[%clk 0:02:59.6]}
2... e6 {[%clk 0:02:52.9]} 3. c3 {[%clk 0:02:57.4]} 3... Bb7 {[%clk 0:02:52.8]}
4. Bd3 {[%clk 0:02:57.4]} 4... Nf6 {[%clk 0:02:52.1]} 5. Qe2 {[%clk 0:02:56.5]}
5... c5 {[%clk 0:02:45.2]} 6. d5 {[%clk 0:02:53.9]} 6... Be7 {[%clk 0:02:39.9]}
7. c4 {[%clk 0:02:53.4]} 7... d6 {[%clk 0:02:34.8]} 8. Nc3 {[%clk 0:02:52.2]}
8... Nbd7 {[%clk 0:02:32.8]} 9. Nf3 {[%clk 0:02:44.7]} 9... e5 {[%clk
0:02:27.9]} 10. O-O {[%clk 0:02:29.5]} 10... O-O {[%clk 0:02:26.2]} 11. Nd1
{[%clk 0:02:24]} 11... a6 {[%clk 0:02:17.2]} 12. a4 {[%clk 0:02:23.2]} 12... b5
{[%clk 0:02:11.6]} 13. cxb5 {[%clk 0:02:18.9]} 13... axb5 {[%clk 0:02:12.5]} 14.
Bxb5 {[%clk 0:02:19.5]} 14... Qb6 {[%clk 0:01:37.8]} 15. Bg5 {[%clk 0:02:11.9]}
15... Ba6 {[%clk 0:01:25.9]} 16. Nc3 {[%clk 0:02:11]} 16... Rfb8 {[%clk
0:01:20.6]} 17. Nd2 {[%clk 0:01:56.9]} 17... h6 {[%clk 0:01:04.1]} 18. Bxf6
{[%clk 0:01:53.7]} 18... Nxf6 {[%clk 0:01:02.2]} 19. Nc4 {[%clk 0:01:54.6]}
19... Qb7 {[%clk 0:00:50.4]} 20. Bc6 {[%clk 0:01:50]} 20... Qb4 {[%clk
0:00:41.5]} 21. Nb5 {[%clk 0:01:42.5]} 21... Bxb5 {[%clk 0:00:33.4]} 22. axb5
{[%clk 0:01:43.4]} 22... Rxa1 {[%clk 0:00:32.6]} 23. Rxa1 {[%clk 0:01:44.3]}
23... g5 {[%clk 0:00:20.6]} 24. g3 {[%clk 0:01:22.1]} 24... Kg7 {[%clk
0:00:20.2]} 25. Ra7 {[%clk 0:01:02.9]} 25... Bf8 {[%clk 0:00:17]} 26. f3 {[%clk
0:00:51.3]} 26... h5 {[%clk 0:00:16.6]} 27. Ne3 {[%clk 0:00:50.8]} 27... Kg6
{[%clk 0:00:13.3]} 28. Kf2 {[%clk 0:00:47.1]} 28... Qd4 {[%clk 0:00:12.9]} 29.
b3 {[%clk 0:00:42.6]} 29... g4 {[%clk 0:00:12.9]} 30. Ra4 {[%clk 0:00:42.2]}
30... gxf3 {[%clk 0:00:09.1]} 31. Qxf3 {[%clk 0:00:38]} 31... Qd2+ {[%clk
0:00:07.7]} 32. Qe2 {[%clk 0:00:38]} 32... Qxe2+ {[%clk 0:00:06.7]} 33. Kxe2
{[%clk 0:00:38.3]} 33... Be7 {[%clk 0:00:04.4]} 34. Nf5 {[%clk 0:00:33.9]} 34...
Bf8 {[%clk 0:00:04.8]} 35. Kf3 {[%clk 0:00:34.1]} 35... Rb6 {[%clk 0:00:03.7]}
36. Ra6 {[%clk 0:00:33.5]} 36... Rb8 {[%clk 0:00:03.2]} 37. b6 {[%clk
0:00:33.7]} 37... Ne8 {[%clk 0:00:02.7]} 38. Bxe8 {[%clk 0:00:30.9]} 38... Rxe8
{[%clk 0:00:03.6]} 39. b7 {[%clk 0:00:31.4]} 39... Rb8 {[%clk 0:00:03.7]} 40.
Nxd6 {[%clk 0:00:31.1]} 40... Kh7 {[%clk 0:00:02.7]} 41. Nxf7 {[%clk 0:00:26.2]}
41... Rxb7 {[%clk 0:00:02.5]} 42. Nxe5 {[%clk 0:00:25.3]} 42... Rxb3+ {[%clk
0:00:01.9]} 43. Kg2 {[%clk 0:00:25.6]} 43... Rb2+ {[%clk 0:00:01.6]} 44. Kh3
{[%clk 0:00:25.7]} 44... Bg7 {[%clk 0:00:02.5]} 45. Nf3 {[%clk 0:00:25.2]} 45...
c4 {[%clk 0:00:02.7]} 46. Ng5+ {[%clk 0:00:24.5]} 46... Kg8 {[%clk 0:00:03.1]}
47. Ra8+ {[%clk 0:00:24.9]} 47... Bf8 {[%clk 0:00:03.6]} 48. Ne6 {[%clk
0:00:25.4]} 48... Rf2 {[%clk 0:00:03.7]} 49. d6 {[%clk 0:00:21.5]} 49... c3
{[%clk 0:00:02.9]} 50. d7 {[%clk 0:00:21.3]} 50... c2 {[%clk 0:00:03]} 51. d8=Q
{[%clk 0:00:20.6]} 51... c1=Q {[%clk 0:00:03.1]} 52. Nxf8 {[%clk 0:00:13.1]}
52... Qf1+ {[%clk 0:00:03.3]} 53. Kh4 {[%clk 0:00:12.5]} 53... Rf4+ {[%clk
0:00:03.6]} 54. gxf4 {[%clk 0:00:09.5]} 54... Qxf4+ {[%clk 0:00:04.5]} 55. Kxh5
{[%clk 0:00:09.6]} 55... Qxh2+ {[%clk 0:00:04.5]} 56. Kg5 {[%clk 0:00:08.9]}
56... Qe5+ {[%clk 0:00:04]} 57. Kg6 {[%clk 0:00:08.8]} 57... Qxe4+ {[%clk
0:00:03.4]} 58. Kf6 {[%clk 0:00:09.3]} 58... Qh4+ {[%clk 0:00:02.6]} 59. Ke6
{[%clk 0:00:09.9]} 59... Qe4+ {[%clk 0:00:02.8]} 60. Kd6 {[%clk 0:00:10.1]}
60... Qd4+ {[%clk 0:00:03]} 61. Ke7 {[%clk 0:00:10.5]} 61... Qg7+ {[%clk
0:00:01.9]} 62. Ke6 {[%clk 0:00:10.1]} 62... Qg4+ {[%clk 0:00:01.5]} 63. Ke5
{[%clk 0:00:10.2]} 63... Qe2+ {[%clk 0:00:01.3]} 64. Kd6 {[%clk 0:00:09.1]}
64... Qd3+ {[%clk 0:00:01.4]} 65. Ke7 {[%clk 0:00:09.4]} 1-0

[Event "Late-Titled-Tuesday-Blitz-March-12-2024"]
[Site "Chess.com"]
[Date "2024.03.12"]
[Round "9"]
[White "JSPrepz"]
[Black "Fh2411"]
[Result "0-1"]
[WhiteElo "2823"]
[BlackElo "2672"]
[TimeControl "180+1"]
[EndTime "15:43:43 PDT"]
[Termination "Fh2411 won by resignation"]

1. e4 {[%clk 0:03:00.9]} 1... c6 {[%clk 0:02:59.7]} 2. d4 {[%clk 0:03:01.1]}
2... d5 {[%clk 0:02:59.4]} 3. Nd2 {[%clk 0:03:02]} 3... dxe4 {[%clk 0:02:57.2]}
4. Nxe4 {[%clk 0:03:02.9]} 4... Nf6 {[%clk 0:02:57.8]} 5. Nxf6+ {[%clk
0:03:03.4]} 5... exf6 {[%clk 0:02:58.7]} 6. c3 {[%clk 0:03:04.2]} 6... Qe7+
{[%clk 0:02:58.8]} 7. Be2 {[%clk 0:03:03]} 7... Qc7 {[%clk 0:02:44.5]} 8. Nf3
{[%clk 0:03:02.3]} 8... Bd6 {[%clk 0:02:44.9]} 9. O-O {[%clk 0:03:02.2]} 9...
O-O {[%clk 0:02:45.6]} 10. Be3 {[%clk 0:03:02]} 10... Re8 {[%clk 0:02:44.5]} 11.
c4 {[%clk 0:03:02.2]} 11... Nd7 {[%clk 0:02:31.2]} 12. c5 {[%clk 0:02:59.5]}
12... Be7 {[%clk 0:02:24]} 13. Qd2 {[%clk 0:03:00.4]} 13... Nf8 {[%clk
0:02:23.5]} 14. Bf4 {[%clk 0:02:57.5]} 14... Qd8 {[%clk 0:02:23.6]} 15. Rfe1
{[%clk 0:02:54.5]} 15... Be6 {[%clk 0:02:23.6]} 16. b4 {[%clk 0:02:52.7]} 16...
Qd7 {[%clk 0:02:02.2]} 17. a4 {[%clk 0:02:52.1]} 17... Rad8 {[%clk 0:02:02.7]}
18. b5 {[%clk 0:02:49.6]} 18... g5 {[%clk 0:01:49]} 19. Be3 {[%clk 0:02:29.9]}
19... h6 {[%clk 0:01:48.1]} 20. Qc3 {[%clk 0:02:14]} 20... Ng6 {[%clk 0:01:45]}
21. Qa5 {[%clk 0:02:09.2]} 21... Ra8 {[%clk 0:01:32.9]} 22. Rab1 {[%clk
0:02:09.2]} 22... Bd5 {[%clk 0:01:04.3]} 23. Nd2 {[%clk 0:02:03.8]} 23... f5
{[%clk 0:01:02.5]} 24. f3 {[%clk 0:01:23.3]} 24... f4 {[%clk 0:00:51.2]} 25. Bf2
{[%clk 0:01:23.1]} 25... f5 {[%clk 0:00:47.1]} 26. Bd3 {[%clk 0:01:20.9]} 26...
Bf6 {[%clk 0:00:41.8]} 27. bxc6 {[%clk 0:01:18.1]} 27... bxc6 {[%clk 0:00:41.4]}
28. Qa6 {[%clk 0:01:16.6]} 28... Rxe1+ {[%clk 0:00:31.2]} 29. Rxe1 {[%clk
0:01:16.5]} 29... Rb8 {[%clk 0:00:31.5]} 30. Nc4 {[%clk 0:01:06.3]} 30... Ne7
{[%clk 0:00:30.9]} 31. Nd6 {[%clk 0:01:06.2]} 31... g4 {[%clk 0:00:28.6]} 32.
Be2 {[%clk 0:00:55]} 32... h5 {[%clk 0:00:26.2]} 33. Qd3 {[%clk 0:00:53.8]}
33... h4 {[%clk 0:00:16.9]} 34. Rb1 {[%clk 0:00:36.9]} 34... Rf8 {[%clk
0:00:15.2]} 35. Be1 {[%clk 0:00:26.4]} 35... g3 {[%clk 0:00:13.8]} 36. h3 {[%clk
0:00:26.3]} 36... Qe6 {[%clk 0:00:13.8]} 37. Bd2 {[%clk 0:00:26.3]} 37... Bg5
{[%clk 0:00:10.6]} 38. Bf1 {[%clk 0:00:24.4]} 38... Qf6 {[%clk 0:00:08.8]} 39.
a5 {[%clk 0:00:22.8]} 39... Bh6 {[%clk 0:00:09]} 40. a6 {[%clk 0:00:22.4]} 40...
Bg7 {[%clk 0:00:09.7]} 41. Bc3 {[%clk 0:00:22.9]} 41... Nc8 {[%clk 0:00:08.7]}
42. Nxc8 {[%clk 0:00:18.8]} 42... Rxc8 {[%clk 0:00:09.6]} 43. Rb7 {[%clk
0:00:19.5]} 43... Ra8 {[%clk 0:00:10.1]} 44. Qe2 {[%clk 0:00:18.6]} 44... Qe6
{[%clk 0:00:10.1]} 45. Qxe6+ {[%clk 0:00:18.2]} 45... Bxe6 {[%clk 0:00:11]} 46.
Rc7 {[%clk 0:00:16.9]} 46... Bd5 {[%clk 0:00:10.9]} 47. Bd3 {[%clk 0:00:17.6]}
47... Rb8 {[%clk 0:00:10.4]} 48. Rb7 {[%clk 0:00:17.1]} 48... Re8 {[%clk
0:00:10.7]} 49. Bxf5 {[%clk 0:00:16.2]} 49... Re3 {[%clk 0:00:10.3]} 50. Bd2
{[%clk 0:00:08.8]} 50... Ra3 {[%clk 0:00:10.4]} 51. Kf1 {[%clk 0:00:07.3]} 51...
Bc4+ {[%clk 0:00:09.7]} 52. Ke1 {[%clk 0:00:07.2]} 52... Bxd4 {[%clk 0:00:08.9]}
53. Bxf4 {[%clk 0:00:05]} 53... Ra1+ {[%clk 0:00:09.5]} 54. Rb1 {[%clk 0:00:04]}
54... Bc3+ {[%clk 0:00:08.5]} 55. Kd1 {[%clk 0:00:03.9]} 55... Rxa6 {[%clk
0:00:08.7]} 56. Rc1 {[%clk 0:00:02.7]} 56... Ra1 {[%clk 0:00:08.6]} 57. Rxa1
{[%clk 0:00:02.1]} 57... Bxa1 {[%clk 0:00:09.5]} 58. Bb8 {[%clk 0:00:01.8]}
58... Bf1 {[%clk 0:00:07.9]} 59. Bxa7 {[%clk 0:00:01.7]} 59... Bxg2 {[%clk
0:00:08.5]} 60. Bg4 {[%clk 0:00:02.2]} 60... Bf1 {[%clk 0:00:08.4]} 61. Ke1
{[%clk 0:00:02.6]} 61... g2 {[%clk 0:00:08.2]} 62. Kf2 {[%clk 0:00:01.3]} 62...
Bd4+ {[%clk 0:00:08.8]} 63. Ke1 {[%clk 0:00:02]} 63... g1=Q {[%clk 0:00:09.3]}
0-1

[Event "Late-Titled-Tuesday-Blitz-March-12-2024"]
[Site "Chess.com"]
[Date "2024.03.12"]
[Round "9"]
[White "Felix-Rose"]
[Black "ChessSwole"]
[Result "1-0"]
[WhiteElo "2311"]
[BlackElo "2657"]
[TimeControl "180+1"]
[EndTime "15:43:45 PDT"]
[Termination "Felix-Rose won by checkmate"]

1. e4 {[%clk 0:02:59.9]} 1... c6 {[%clk 0:02:59.8]} 2. d4 {[%clk 0:02:59.9]}
2... d5 {[%clk 0:03:00.4]} 3. e5 {[%clk 0:03:00.4]} 3... Bf5 {[%clk 0:03:00.4]}
4. h4 {[%clk 0:03:01]} 4... h5 {[%clk 0:03:00.5]} 5. Bd3 {[%clk 0:03:01.1]} 5...
Bxd3 {[%clk 0:03:00.2]} 6. Qxd3 {[%clk 0:03:02]} 6... Qa5+ {[%clk 0:03:00.1]} 7.
Bd2 {[%clk 0:02:58.1]} 7... Qa6 {[%clk 0:02:59.4]} 8. e6 {[%clk 0:02:58.6]} 8...
Qxd3 {[%clk 0:02:57.8]} 9. exf7+ {[%clk 0:02:58.7]} 9... Kxf7 {[%clk 0:02:58.7]}
10. cxd3 {[%clk 0:02:59]} 10... Nd7 {[%clk 0:02:49.3]} 11. Nf3 {[%clk
0:02:58.7]} 11... e6 {[%clk 0:02:05.1]} 12. O-O {[%clk 0:02:58.2]} 12... Be7
{[%clk 0:01:58.4]} 13. Re1 {[%clk 0:02:56]} 13... Re8 {[%clk 0:01:55.1]} 14. Bg5
{[%clk 0:02:55.4]} 14... Ngf6 {[%clk 0:01:46.7]} 15. Nc3 {[%clk 0:02:54.8]}
15... Bd6 {[%clk 0:01:17.1]} 16. Bd2 {[%clk 0:02:20.4]} 16... Nh7 {[%clk
0:01:15]} 17. Ne5+ {[%clk 0:02:10.9]} 17... Bxe5 {[%clk 0:01:03.8]} 18. dxe5
{[%clk 0:02:11.8]} 18... c5 {[%clk 0:00:55.9]} 19. Nb5 {[%clk 0:02:09.2]} 19...
Ke7 {[%clk 0:00:48.4]} 20. Nxa7 {[%clk 0:02:07.2]} 20... Rhf8 {[%clk 0:00:37.9]}
21. Nb5 {[%clk 0:02:00.6]} 21... Ra8 {[%clk 0:00:36.1]} 22. d4 {[%clk
0:01:54.1]} 22... b6 {[%clk 0:00:33]} 23. a4 {[%clk 0:01:52.8]} 23... Rfc8
{[%clk 0:00:19.9]} 24. Re3 {[%clk 0:01:36.3]} 24... cxd4 {[%clk 0:00:17.5]} 25.
Nxd4 {[%clk 0:01:36]} 25... Rc4 {[%clk 0:00:17.2]} 26. Bc3 {[%clk 0:01:24.3]}
26... Raxa4 {[%clk 0:00:15.9]} 27. Rxa4 {[%clk 0:01:24.6]} 27... Rxa4 {[%clk
0:00:16.8]} 28. Rg3 {[%clk 0:01:24.5]} 28... Kf7 {[%clk 0:00:15.5]} 29. Rf3+
{[%clk 0:01:19.7]} 29... Ke7 {[%clk 0:00:14.7]} 30. Nc6+ {[%clk 0:01:15]} 30...
Ke8 {[%clk 0:00:14.2]} 31. Rg3 {[%clk 0:01:15.2]} 31... Rc4 {[%clk 0:00:13.6]}
32. Rxg7 {[%clk 0:01:12.1]} 32... Rxc6 {[%clk 0:00:14.3]} 33. Rxh7 {[%clk
0:01:12.3]} 33... Rc4 {[%clk 0:00:14.3]} 34. Rxh5 {[%clk 0:00:54.6]} 34... d4
{[%clk 0:00:14.5]} 35. Bd2 {[%clk 0:00:51]} 35... Rc2 {[%clk 0:00:14.6]} 36.
Rh8+ {[%clk 0:00:45.7]} 36... Nf8 {[%clk 0:00:13.6]} 37. Bb4 {[%clk 0:00:45.4]}
37... d3 {[%clk 0:00:12.4]} 38. Rxf8+ {[%clk 0:00:37.4]} 38... Kd7 {[%clk
0:00:12.9]} 39. Rf7+ {[%clk 0:00:37.7]} 39... Kc6 {[%clk 0:00:12.7]} 40. Bc3
{[%clk 0:00:28.3]} 40... Rxb2 {[%clk 0:00:12.9]} 41. Rf8 {[%clk 0:00:21.2]}
41... Rc2 {[%clk 0:00:13]} 42. Bb4 {[%clk 0:00:15.3]} 42... Kb5 {[%clk
0:00:13.1]} 43. Rf4 {[%clk 0:00:07.2]} 43... d2 {[%clk 0:00:08.6]} 44. Bxd2
{[%clk 0:00:07.1]} 44... Rxd2 {[%clk 0:00:09.5]} 45. h5 {[%clk 0:00:07.4]} 45...
Rd5 {[%clk 0:00:10]} 46. Re4 {[%clk 0:00:06.7]} 46... Kc5 {[%clk 0:00:09.6]} 47.
h6 {[%clk 0:00:07]} 47... Rd7 {[%clk 0:00:09.8]} 48. Rh4 {[%clk 0:00:06.4]}
48... Rh7 {[%clk 0:00:08.8]} 49. g4 {[%clk 0:00:06.5]} 49... b5 {[%clk
0:00:08.2]} 50. g5 {[%clk 0:00:07.2]} 50... b4 {[%clk 0:00:08.9]} 51. g6 {[%clk
0:00:07.8]} 51... Rd7 {[%clk 0:00:08.7]} 52. h7 {[%clk 0:00:08.2]} 52... b3
{[%clk 0:00:09.4]} 53. h8=Q {[%clk 0:00:08.5]} 53... b2 {[%clk 0:00:10]} 54.
Qc8+ {[%clk 0:00:08.6]} 54... Rc7 {[%clk 0:00:09.1]} 55. Qxc7+ {[%clk
0:00:08.7]} 55... Kd5 {[%clk 0:00:09.7]} 56. Rb4 {[%clk 0:00:08.4]} 56... b1=Q+
{[%clk 0:00:07.4]} 57. Rxb1 {[%clk 0:00:08.7]} 57... Ke4 {[%clk 0:00:08]} 58.
Re1+ {[%clk 0:00:09.1]} 58... Kd5 {[%clk 0:00:08.7]} 59. Qd6+ {[%clk 0:00:09.3]}
59... Kc4 {[%clk 0:00:08.9]} 60. Rc1+ {[%clk 0:00:10.2]} 60... Kb3 {[%clk
0:00:08.7]} 61. Qb8+ {[%clk 0:00:10.7]} 61... Ka2 {[%clk 0:00:09]} 62. Qb1+
{[%clk 0:00:10]} 62... Ka3 {[%clk 0:00:09.9]} 63. Rc3+ {[%clk 0:00:10.7]} 63...
Ka4 {[%clk 0:00:10.8]} 64. Qb3+ {[%clk 0:00:11]} 64... Ka5 {[%clk 0:00:11.7]}
65. Rc5+ {[%clk 0:00:11.5]} 65... Ka6 {[%clk 0:00:12.6]} 66. Qb5+ {[%clk
0:00:12]} 66... Ka7 {[%clk 0:00:13.5]} 67. Rc7+ {[%clk 0:00:12.6]} 67... Ka8
{[%clk 0:00:14.4]} 68. Qb7# {[%clk 0:00:13.2]} 1-0

[Event "Late-Titled-Tuesday-Blitz-March-12-2024"]
[Site "Chess.com"]
[Date "2024.03.12"]
[Round "9"]
[White "IMRosen"]
[Black "ExchangeAB"]
[Result "0-1"]
[WhiteElo "2656"]
[BlackElo "2510"]
[TimeControl "180+1"]
[EndTime "15:44:09 PDT"]
[Termination "ExchangeAB won on time"]

1. e4 {[%clk 0:03:00.9]} 1... c6 {[%clk 0:03:00]} 2. d4 {[%clk 0:02:54.6]} 2...
d5 {[%clk 0:03:00.9]} 3. Nc3 {[%clk 0:02:55.3]} 3... dxe4 {[%clk 0:03:00.8]} 4.
Nxe4 {[%clk 0:02:56.2]} 4... Nf6 {[%clk 0:03:01.4]} 5. Ng5 {[%clk 0:02:56.3]}
5... Bf5 {[%clk 0:02:53.9]} 6. N1f3 {[%clk 0:02:27.1]} 6... Bg6 {[%clk
0:02:08.7]} 7. Ne5 {[%clk 0:02:21.8]} 7... Nbd7 {[%clk 0:02:03.9]} 8. Qf3 {[%clk
0:02:07.4]} 8... Nxe5 {[%clk 0:01:56.1]} 9. dxe5 {[%clk 0:02:07.5]} 9... Qa5+
{[%clk 0:01:54.7]} 10. Qc3 {[%clk 0:01:49.4]} 10... Qxc3+ {[%clk 0:01:54.2]} 11.
bxc3 {[%clk 0:01:50.3]} 11... Nd5 {[%clk 0:01:51.2]} 12. e6 {[%clk 0:01:26.9]}
12... f6 {[%clk 0:01:43.9]} 13. Nf3 {[%clk 0:01:27.1]} 13... Bxc2 {[%clk
0:01:39.5]} 14. Nd4 {[%clk 0:01:21.8]} 14... Bg6 {[%clk 0:01:38.6]} 15. c4
{[%clk 0:01:20.3]} 15... Nc7 {[%clk 0:01:38.1]} 16. Bf4 {[%clk 0:01:15.3]} 16...
O-O-O {[%clk 0:01:37.6]} 17. O-O-O {[%clk 0:01:15.6]} 17... Rxd4 {[%clk
0:01:31.6]} 18. Rxd4 {[%clk 0:00:48.9]} 18... Nxe6 {[%clk 0:01:31.4]} 19. Be3
{[%clk 0:00:46.8]} 19... Nxd4 {[%clk 0:01:31.5]} 20. Bxd4 {[%clk 0:00:47.7]}
20... e5 {[%clk 0:01:31.5]} 21. Bxa7 {[%clk 0:00:44.8]} 21... Ba3+ {[%clk
0:01:29.6]} 22. Kd2 {[%clk 0:00:45.3]} 22... Rd8+ {[%clk 0:01:28.7]} 23. Kc3
{[%clk 0:00:45.9]} 23... Kc7 {[%clk 0:01:16.6]} 24. Be3 {[%clk 0:00:43.8]} 24...
Rd1 {[%clk 0:01:11.6]} 25. g3 {[%clk 0:00:21.6]} 25... Be4 {[%clk 0:01:08.8]}
26. Rg1 {[%clk 0:00:07.8]} 26... Bd3 {[%clk 0:01:02.4]} 27. Bxd3 {[%clk
0:00:07.6]} 27... Rxg1 {[%clk 0:01:03.3]} 28. Bxh7 {[%clk 0:00:07.3]} 28... Bc1
{[%clk 0:00:59.3]} 29. Bc5 {[%clk 0:00:07.3]} 29... b6 {[%clk 0:00:53.6]} 30.
Bf8 {[%clk 0:00:07.1]} 30... Bh6 {[%clk 0:00:53.9]} 31. c5 {[%clk 0:00:04]}
31... Rg2 {[%clk 0:00:51.8]} 32. cxb6+ {[%clk 0:00:02.8]} 32... Kxb6 {[%clk
0:00:52.7]} 33. Kc4 {[%clk 0:00:02.5]} 33... Rxh2 {[%clk 0:00:48.5]} 34. Be4
{[%clk 0:00:03.1]} 34... Kc7 {[%clk 0:00:40.2]} 35. Bc5 {[%clk 0:00:02.8]} 35...
Bd2 {[%clk 0:00:37.2]} 36. a4 {[%clk 0:00:03]} 36... Ba5 {[%clk 0:00:35.6]} 37.
f4 {[%clk 0:00:01.9]} 37... exf4 {[%clk 0:00:34.7]} 38. gxf4 {[%clk 0:00:02.1]}
38... Bb6 {[%clk 0:00:34.5]} 39. Bf8 {[%clk 0:00:02.1]} 39... Rh4 {[%clk
0:00:27]} 40. Bxg7 {[%clk 0:00:02.4]} 40... Rxf4 {[%clk 0:00:27.1]} 41. Kd3
{[%clk 0:00:03.1]} 41... Kd6 {[%clk 0:00:24.3]} 42. Bf8+ {[%clk 0:00:03.2]}
42... Kd7 {[%clk 0:00:19.8]} 43. Bh6 {[%clk 0:00:02.5]} 43... Rh4 {[%clk
0:00:19.2]} 44. Bg7 {[%clk 0:00:02.6]} 44... Rh3+ {[%clk 0:00:19.4]} 45. Kd2
{[%clk 0:00:01.5]} 45... Rh2+ {[%clk 0:00:18.4]} 46. Kd3 {[%clk 0:00:01.9]}
46... Rf2 {[%clk 0:00:18.3]} 47. a5 {[%clk 0:00:01.1]} 47... Bxa5 {[%clk
0:00:18.1]} 48. Bh6 {[%clk 0:00:01.6]} 48... Bc7 {[%clk 0:00:17.5]} 49. Be3
{[%clk 0:00:01.9]} 49... Rf1 {[%clk 0:00:16.1]} 50. Ke2 {[%clk 0:00:02.2]} 50...
Ra1 {[%clk 0:00:15.1]} 51. Bd4 {[%clk 0:00:01.9]} 51... Be5 {[%clk 0:00:14.7]}
52. Bxa1 {[%clk 0:00:01.4]} 52... Bxa1 {[%clk 0:00:15.6]} 53. Bf5+ {[%clk
0:00:01.5]} 53... Kd6 {[%clk 0:00:15.7]} 54. Kd3 {[%clk 0:00:02.1]} 54... Be5
{[%clk 0:00:16.1]} 55. Be4 {[%clk 0:00:02.4]} 55... Kc5 {[%clk 0:00:16.2]} 56.
Kc2 {[%clk 0:00:02.2]} 56... Kb5 {[%clk 0:00:16.4]} 57. Bf5 {[%clk 0:00:02.5]}
57... c5 {[%clk 0:00:16.7]} 58. Be6 {[%clk 0:00:03.1]} 58... Kb4 {[%clk
0:00:16.8]} 59. Kd3 {[%clk 0:00:03.1]} 59... Kb5 {[%clk 0:00:14.2]} 60. Bc4+
{[%clk 0:00:03.8]} 60... Kc6 {[%clk 0:00:14.4]} 61. Ke4 {[%clk 0:00:04.5]} 61...
Kd6 {[%clk 0:00:14.6]} 62. Bb3 {[%clk 0:00:04]} 62... Ba1 {[%clk 0:00:14.2]} 63.
Bc4 {[%clk 0:00:04.5]} 63... Ke7 {[%clk 0:00:14.3]} 64. Kf5 {[%clk 0:00:04.3]}
64... Bd4 {[%clk 0:00:14.5]} 65. Bb3 {[%clk 0:00:04.5]} 65... Kd7 {[%clk
0:00:15.4]} 66. Bc4 {[%clk 0:00:04.9]} 66... Kc7 {[%clk 0:00:16.3]} 67. Ke4
{[%clk 0:00:05.5]} 67... Kb6 {[%clk 0:00:17.2]} 68. Bd3 {[%clk 0:00:05.5]} 68...
Ka5 {[%clk 0:00:18.1]} 69. Kd5 {[%clk 0:00:06.2]} 69... Kb4 {[%clk 0:00:18.3]}
70. Be2 {[%clk 0:00:06.2]} 70... Kc3 {[%clk 0:00:18.5]} 71. Ke6 {[%clk
0:00:05.3]} 71... Kb3 {[%clk 0:00:17]} 72. Kd5 {[%clk 0:00:04.9]} 72... Be3
{[%clk 0:00:16.3]} 73. Bd3 {[%clk 0:00:05.1]} 73... Kc3 {[%clk 0:00:15.2]} 74.
Be2 {[%clk 0:00:03.6]} 74... f5 {[%clk 0:00:14.9]} 75. Bf3 {[%clk 0:00:02.7]}
75... f4 {[%clk 0:00:15.1]} 76. Be2 {[%clk 0:00:02.3]} 76... Kb3 {[%clk
0:00:15]} 77. Bf1 {[%clk 0:00:02]} 77... Bd4 {[%clk 0:00:12.9]} 78. Ke4 {[%clk
0:00:02.5]} 78... Be3 {[%clk 0:00:13]} 79. Kd5 {[%clk 0:00:02.1]} 79... Kb2
{[%clk 0:00:13.9]} 80. Kc4 {[%clk 0:00:02]} 80... Kc1 {[%clk 0:00:14.8]} 81. Bg2
{[%clk 0:00:01.3]} 81... Kd2 {[%clk 0:00:15.7]} 0-1